bitfinex-derivatives/quotes_BNBF0:USTF0_20250708
["timestamp","ask_amount","ask_price","bid_price","bid_amount"]
[1751944261216,1.69918062,658.73,658.31,1.69]
[1751944262716,1.69918062,658.72,658.31,1.69]
[1751944263218,1.69918062,658.71,658.31,1.69]
[1751944263622,1.69918062,658.72,658.31,1.69]
[1751944264321,1.69918062,658.73,658.31,1.69]
[1751944265218,1.69918062,658.74,658.31,1.69]
[1751944265521,1.69918062,658.75,658.31,1.69]
[1751944266125,1.69918062,658.76,658.31,1.69]
[1751944266524,1.69918062,658.77,658.31,1.69]
[1751944266723,1.69918062,658.76,658.31,1.69]
[1751944267329,2.26194181,658.9,658.31,1.69]
[1751944267330,1.69918062,658.75,658.31,1.69]
[1751944267629,1.69918062,658.76,658.31,1.69]
[1751944276332,1.69918062,658.75,658.31,1.69]
[1751944276734,1.69918062,658.76,658.31,1.69]
[1751944277030,1.69918062,658.77,658.31,1.69]
[1751944278531,1.69918062,658.76,658.31,1.69]
[1751944280037,1.69918062,658.77,658.31,1.69]
[1751944281036,1.69918062,658.76,658.31,1.69]
[1751944281637,1.69918062,658.77,658.31,1.69]
[1751944282737,2.31881231,658.9,658.31,1.69]
[1751944282934,1.69991512,658.77,658.31,1.69]
[1751944283132,1.69991512,658.76,658.31,1.69]
[1751944286939,1.69991512,658.75,658.31,1.69]
[1751944287441,1.69991512,658.75,658.3,0.26423289]
[1751944288142,1.69991512,658.74,658.3,0.26423289]
[1751944288436,2.31893753,658.86,658.3,0.26423289]
[1751944288640,1.69992837,658.74,658.3,0.26423289]
[1751944290242,1.69992837,658.74,658.31,2.263]
[1751944291443,1.69992837,658.73,658.31,2.263]
[1751944292243,1.69992837,658.74,658.31,2.263]
[1751944293843,2.31893361,658.85,658.31,2.263]
[1751944293844,1.69992837,658.76,658.31,2.263]
[1751944300248,1.69992837,658.75,658.31,2.263]
[1751944303748,1.69992837,658.72,658.31,2.263]
[1751944306256,1.69992837,658.73,658.31,2.263]
[1751944308354,1.69992837,658.72,658.31,2.263]
[1751944311661,1.69992837,658.71,658.31,2.263]
[1751944312965,1.69992837,658.7,658.31,2.263]
[1751944314266,1.69992837,658.69,658.31,2.263]
[1751944314866,2.32128546,658.8,658.31,2.263]
[1751944314867,1.69992837,658.7,658.31,2.263]
[1751944315267,1.69992837,658.69,658.31,2.263]
[1751944316168,1.69992837,658.68,658.31,2.263]
[1751944317371,2.32128546,658.78,658.31,2.263]
[1751944317568,1.70209085,658.68,658.31,2.263]
[1751944323171,1.70209085,658.67,658.31,2.263]
[1751944331388,1.70209085,658.68,658.31,2.263]
[1751944331786,1.70209085,658.64,658.31,2.263]
[1751944332289,1.70209085,658.65,658.31,2.263]
[1751944333394,1.70209085,658.65,658.3,0.26423289]
[1751944334888,1.70211935,658.65,658.3,0.26423289]
[1751944336094,1.70211935,658.65,658.31,1.772]
[1751944339692,1.70211935,658.67,658.31,1.772]
[1751944340296,1.70211935,658.69,658.31,1.772]
[1751944345197,1.70211935,658.72,658.31,1.772]
[1751944345498,1.70211935,658.73,658.31,1.772]
[1751944349797,1.70211935,658.72,658.31,1.772]
[1751944351897,1.70211935,658.73,658.31,1.772]
[1751944354102,1.70211935,658.73,658.3,0.26423289]
[1751944354904,1.70211935,658.71,658.3,0.26423289]
[1751944355307,1.70211935,658.7,658.3,0.26423289]
[1751944360015,1.70211935,658.69,658.3,0.26423289]
[1751944361821,1.70211935,658.68,658.3,0.26423289]
[1751944366926,1.70211935,658.69,658.3,0.26423289]
[1751944367922,1.70211935,658.68,658.3,0.26423289]
[1751944369227,1.70211935,658.69,658.3,0.26423289]
[1751944376831,1.70211935,658.68,658.3,0.26423289]
[1751944379334,1.70211935,658.67,658.3,0.26423289]
[1751944393553,1.70211935,658.7,658.3,0.26423289]
[1751944394460,1.70211935,658.69,658.3,0.26423289]
[1751944399357,1.70211935,658.68,658.3,0.26423289]
[1751944401263,1.70211935,658.69,658.3,0.26423289]
[1751944403265,1.70211935,658.67,658.3,0.26423289]
[1751944406368,1.70211935,658.68,658.3,0.26423289]
[1751944406967,1.70211935,658.68,658.2,2.2682764]
[1751944407270,1.70211935,658.68,658.33,0.26422988]
[1751944410474,1.70211935,658.68,658.34,1.921]
[1751944412373,1.70211935,658.67,658.34,1.921]
[1751944413673,1.70211935,658.7,658.34,1.921]
[1751944414478,1.70211935,658.69,658.34,1.921]
[1751944420189,1.70211935,658.7,658.34,1.921]
[1751944430701,1.70211935,658.76,658.34,1.921]
[1751944431001,1.70211935,658.78,658.34,1.921]
[1751944434905,1.70211935,658.8,658.34,1.921]
[1751944436104,1.70211935,658.81,658.34,1.921]
[1751944439003,1.70211935,658.82,658.34,1.921]
[1751944440605,1.70211935,658.79,658.34,1.921]
[1751944443410,1.70211935,658.8,658.34,1.921]
[1751944445917,1.70211935,658.79,658.34,1.921]
[1751944446417,1.70211935,658.79,658.33,0.26422988]
[1751944449222,1.70211935,658.79,658.34,2.161]
[1751944449625,1.70211935,658.78,658.34,2.161]
[1751944450121,1.70211935,658.86,658.34,2.161]
[1751944450319,1.70211935,658.92,658.34,2.161]
[1751944451420,1.70211935,658.93,658.34,2.161]
[1751944451818,1.70211935,658.92,658.34,2.161]
[1751944452425,1.70211935,658.93,658.34,2.161]
[1751944455623,1.70211935,658.94,658.34,2.161]
[1751944459925,1.70211935,658.88,658.34,2.161]
[1751944461527,1.70211935,658.89,658.34,2.161]
[1751944461929,1.70211935,658.88,658.34,2.161]
[1751944466933,1.70211935,658.87,658.34,2.161]
[1751944467234,1.70211935,658.86,658.34,2.161]
[1751944467533,1.70211935,658.88,658.34,2.161]
[1751944467730,1.70211935,658.87,658.34,2.161]
[1751944468330,1.70211935,658.88,658.34,2.161]
[1751944470137,1.70211935,658.88,658.33,0.26422988]
[1751944470637,1.70211935,658.87,658.33,0.26422988]
[1751944473138,1.70211935,658.88,658.33,0.26422988]
[1751944473339,1.70211935,658.88,658.34,1.601]
[1751944477341,1.70211935,658.87,658.34,1.601]
[1751944478138,1.70211935,658.86,658.34,1.601]
[1751944483042,1.70211935,658.85,658.34,1.601]
[1751944485144,1.70211935,658.84,658.34,1.601]
[1751944491149,1.70211935,658.83,658.34,1.601]
[1751944493249,1.70211935,658.84,658.34,1.601]
[1751944493846,1.70211935,658.83,658.34,1.601]
[1751944499455,1.70211935,658.82,658.34,1.601]
[1751944499755,1.70211935,658.83,658.34,1.601]
[1751944503064,1.70211935,658.82,658.34,1.601]
[1751944506361,1.70211935,658.81,658.34,1.601]
[1751944507166,1.70211935,658.82,658.34,1.601]
[1751944507463,1.70211935,658.81,658.34,1.601]
[1751944508562,1.70211935,658.8,658.34,3.8692764]
[1751944508764,1.70211935,658.81,658.34,1.601]
[1751944509370,1.70211935,658.8,658.34,3.8692764]
[1751944509570,1.70211935,658.8,658.35,2.2682764]
[1751944509871,1.70211935,658.79,658.35,2.2682764]
[1751944510670,1.70211935,658.79,658.36,2.2682764]
[1751944511468,1.70211935,658.79,658.35,2.2682764]
[1751944513277,1.70211935,658.8,658.34,2.2682764]
[1751944514976,1.70211935,658.8,658.35,2.141]
[1751944519377,1.70211935,658.81,658.35,2.141]
[1751944521177,1.70211935,658.82,658.35,2.141]
[1751944522379,1.70211935,658.81,658.35,2.141]
[1751944526779,1.70211935,658.82,658.35,2.141]
[1751944531183,1.70211935,658.81,658.35,2.141]
[1751944534291,1.70211935,658.83,658.33,0.26422988]
[1751944534493,1.70211935,658.82,658.33,0.26422988]
[1751944535188,1.70211935,658.83,658.33,0.26422988]
[1751944537190,1.70211935,658.83,658.34,1.655]
[1751944537394,1.70211935,658.84,658.34,1.655]
[1751944538193,1.70211935,658.85,658.34,1.655]
[1751944540394,1.70211935,658.86,658.34,1.655]
[1751944540693,1.70211935,658.85,658.34,1.655]
[1751944547409,1.50664122,658.99,658.34,1.655]
[1751944547410,1.70211935,658.84,658.34,1.655]
[1751944548201,1.70211935,658.82,658.34,1.655]
[1751944550205,1.70211935,658.8,658.34,1.655]
[1751944550405,1.70211935,658.79,658.34,1.655]
[1751944550605,1.70211935,658.78,658.34,1.655]
[1751944552407,1.70211935,658.8,658.34,1.655]
[1751944554409,1.70211935,658.81,658.34,1.655]
[1751944559012,1.70211935,658.83,658.34,1.655]
[1751944559412,1.70211935,658.82,658.34,1.655]
[1751944562908,1.70211935,658.81,658.34,1.655]
[1751944563515,1.70211935,658.82,658.34,1.655]
[1751944563713,1.70211935,658.81,658.34,1.655]
[1751944564815,1.70211935,658.82,658.34,1.655]
[1751944568813,1.70211935,658.8,658.34,1.655]
[1751944573217,1.70211935,658.8,658.33,0.26422988]
[1751944574616,1.70211935,658.78,658.33,2.53250628]
[1751944575520,1.70211935,658.8,658.33,0.26422988]
[1751944576714,1.70211935,658.8,658.34,1.811]
[1751944585324,1.70211935,658.79,658.34,1.811]
[1751944588924,1.70211935,658.8,658.34,1.811]
[1751944591124,1.70211935,658.79,658.34,1.811]
[1751944594328,1.70211935,658.78,658.34,1.811]
[1751944597434,1.70211935,658.77,658.34,1.811]
[1751944597934,1.70211935,658.78,658.34,1.811]
[1751944598934,1.70211935,658.77,658.34,1.811]
[1751944600234,2.32479708,658.88,658.34,1.811]
[1751944600437,1.70551074,658.77,658.34,1.811]
[1751944606237,1.70551074,658.76,658.34,1.811]
[1751944606538,1.70551074,658.77,658.34,1.811]
[1751944607538,1.70551074,658.77,658.37,0.26419076]
[1751944607837,1.70551074,658.76,658.37,0.26419076]
[1751944609643,1.70551074,658.75,658.37,0.26419076]
[1751944612748,2.32489436,658.85,658.37,0.26419076]
[1751944612749,1.70551074,658.76,658.37,0.26419076]
[1751944621554,1.70551074,658.78,658.37,0.26419076]
[1751944622648,1.70551074,658.78,658.38,1.497]
[1751944623055,1.70551074,658.79,658.38,1.497]
[1751944624957,1.70551074,658.84,658.38,1.497]
[1751944627853,1.70551074,658.83,658.38,1.497]
[1751944629754,1.70551074,658.84,658.38,1.497]
[1751944631556,1.70551074,658.83,658.38,1.497]
[1751944632563,1.70551074,658.84,658.38,1.497]
[1751944633958,0.47335098,659.0,658.38,1.497]
[1751944633959,1.70551074,658.86,658.41,0.26415066]
[1751944634962,1.70551074,658.83,658.41,0.26415066]
[1751944635462,1.70551074,658.84,658.41,0.26415066]
[1751944642163,1.70551074,658.85,658.41,0.26415066]
[1751944642360,1.70551074,658.83,658.41,0.26415066]
[1751944645468,1.70551074,658.83,658.42,1.595]
[1751944647174,1.70551074,658.82,658.42,1.595]
[1751944651980,1.70551074,658.79,658.42,1.595]
[1751944658283,1.70551074,658.8,658.42,1.595]
[1751944659886,1.70551074,658.79,658.42,1.595]
[1751944660386,1.70551074,658.8,658.42,1.595]
[1751944661684,1.70551074,658.81,658.42,1.595]
[1751944665890,1.70551074,658.84,658.42,1.595]
[1751944667093,1.70551074,658.85,658.42,1.595]
[1751944670394,1.70551074,658.84,658.42,1.595]
[1751944671600,1.70551074,658.85,658.42,1.595]
[1751944673097,1.70551074,658.86,658.42,1.595]
[1751944673301,1.70551074,658.85,658.42,1.595]
[1751944675202,1.70551074,658.87,658.42,1.595]
[1751944675597,1.70551074,658.86,658.42,1.595]
[1751944678598,1.70551074,658.86,658.41,0.26415066]
[1751944679000,1.70551074,658.87,658.41,0.26415066]
[1751944680403,1.70551074,658.86,658.41,0.26415066]
[1751944682401,1.70551074,658.86,658.41,2.17515066]
[1751944683404,1.70551074,658.88,658.41,2.17515066]
[1751944683603,1.70551074,658.86,658.41,2.17515066]
[1751944685104,1.70551074,658.85,658.41,2.17515066]
[1751944688509,1.70551074,658.86,658.41,2.17515066]
[1751944688910,1.70551074,658.85,658.41,2.17515066]
[1751944693217,1.70551074,658.82,658.41,2.17515066]
[1751944698317,1.70551074,658.82,658.41,0.26415066]
[1751944699614,1.70551074,658.81,658.41,0.26415066]
[1751944702220,1.70551074,658.81,658.42,2.257]
[1751944706828,1.70551074,658.8,658.42,2.257]
[1751944707024,1.70551074,658.79,658.42,2.257]
[1751944709127,1.70551074,658.77,658.42,2.257]
[1751944710125,1.70551074,658.78,658.42,2.257]
[1751944712132,1.70551074,658.8,658.42,2.257]
[1751944716532,1.70551074,658.81,658.42,2.257]
[1751944719240,1.70551074,658.81,658.41,0.26415066]
[1751944720037,2.32691047,658.91,658.41,0.26415066]
[1751944720038,1.70551074,658.8,658.41,0.26415066]
[1751944720242,1.70551074,658.83,658.41,0.26415066]
[1751944721045,1.70551074,658.85,658.41,0.26415066]
[1751944722340,1.70551074,658.85,658.42,1.773]
[1751944724748,1.70551074,658.86,658.42,1.773]
[1751944730147,1.70551074,658.85,658.42,1.773]
[1751944730849,1.70551074,658.84,658.42,1.773]
[1751944733445,1.70551074,658.81,658.42,1.773]
[1751944734650,1.70551074,658.79,658.42,1.773]
[1751944738453,1.70551074,658.79,658.41,0.26415066]
[1751944738850,1.70551074,658.78,658.41,0.26415066]
[1751944740452,1.70551074,658.79,658.41,0.26415066]
[1751944741652,1.70551074,658.79,658.42,1.808]
[1751944742353,1.70551074,658.78,658.42,1.808]
[1751944743656,1.70551074,658.79,658.42,1.808]
[1751944744453,1.70551074,658.81,658.42,1.808]
[1751944745255,1.70551074,658.82,658.42,1.808]
[1751944746360,1.70551074,658.79,658.42,1.808]
[1751944749858,1.70613029,658.79,658.42,1.808]
[1751944750162,1.70613029,658.8,658.42,1.808]
[1751944753559,5.65485454,659.54,658.42,1.808]
[1751944753560,1.70613029,658.79,658.42,1.808]
[1751944760165,1.70613029,658.78,658.42,1.808]
[1751944769876,1.70613029,658.79,658.42,1.808]
[1751944777379,2.32620057,658.9,658.42,1.808]
[1751944777380,1.70613029,658.84,658.42,1.808]
[1751944777684,1.70613029,658.86,658.41,0.26415066]
[1751944779886,1.70613029,658.87,658.41,0.26415066]
[1751944780185,1.70613029,658.87,658.42,1.94]
[1751944781182,3.65708443,659.18,658.42,1.94]
[1751944781183,1.70613029,658.88,658.42,1.94]
[1751944783290,1.70613029,658.89,658.42,1.94]
[1751944787190,1.70613029,658.87,658.42,1.94]
[1751944791895,1.70613029,658.86,658.42,1.94]
[1751944793292,1.70613029,658.87,658.42,1.94]
[1751944793896,1.03586204,658.92,658.42,1.94]
[1751944793897,1.70613029,658.86,658.42,1.94]
[1751944794902,1.70613029,658.85,658.42,1.94]
[1751944798801,2.32603806,658.96,658.42,1.94]
[1751944798802,1.70613029,658.84,658.42,1.94]
[1751944800508,1.70528879,658.84,658.42,1.94]
[1751944808811,1.70528879,658.85,658.42,1.94]
[1751944812714,1.70528879,658.84,658.42,1.94]
[1751944813814,1.70528879,658.85,658.42,1.94]
[1751944814020,1.70528879,658.86,658.42,1.94]
[1751944814219,1.70528879,658.89,658.42,1.94]
[1751944817721,1.70528879,658.9,658.42,1.94]
[1751944818922,1.70528879,658.89,658.42,1.94]
[1751944819819,1.70528879,658.9,658.42,1.94]
[1751944821524,1.70528879,658.93,658.42,1.94]
[1751944822024,1.70528879,658.94,658.42,1.94]
[1751944823026,1.70528879,658.95,658.42,1.94]
[1751944823226,1.70528879,659.01,658.42,1.94]
[1751944825222,1.70528879,659.02,658.42,1.94]
[1751944828027,1.70528879,658.97,658.42,1.94]
[1751944829328,1.70528879,659.02,658.42,1.94]
[1751944831529,1.70528879,659.0,658.42,1.94]
[1751944832434,1.70528879,658.98,658.42,1.94]
[1751944833032,1.70528879,658.98,658.41,0.26415066]
[1751944833229,1.70528879,658.99,658.41,0.26415066]
[1751944833934,1.70528879,658.99,658.37,2.2682764]
[1751944834134,1.70528879,658.97,658.41,2.2682764]
[1751944834334,1.70528879,658.97,658.46,0.26412961]
[1751944835431,1.70528879,658.96,658.46,0.26412961]
[1751944836634,1.70528879,658.96,658.47,2.406]
[1751944838037,1.70528879,658.97,658.47,2.406]
[1751944839233,1.70528879,658.98,658.47,2.406]
[1751944843241,1.70528879,658.99,658.47,2.406]
[1751944846140,1.70528879,659.0,658.47,2.406]
[1751944847844,1.70528879,659.03,658.47,2.406]
[1751944849147,1.70528879,658.99,658.47,2.406]
[1751944851347,1.70528879,659.03,658.47,2.406]
[1751944855351,1.70528879,659.02,658.47,2.406]
[1751944856352,1.70528879,659.04,658.47,2.406]
[1751944858955,1.70528879,659.05,658.47,2.406]
[1751944860649,1.70528879,659.04,658.47,2.406]
[1751944861454,1.70528879,659.05,658.47,2.406]
[1751944862752,1.70528879,659.1,658.47,2.406]
[1751944862951,1.03464513,659.11,658.47,2.406]
[1751944862952,1.70528879,659.09,658.47,2.406]
[1751944864157,1.70528879,659.1,658.47,2.406]
[1751944866262,1.70528879,659.09,658.47,2.406]
[1751944868759,1.70528879,659.1,658.47,2.406]
[1751944868963,1.70528879,659.09,658.47,2.406]
[1751944869860,1.70528879,659.12,658.46,0.26412961]
[1751944870259,1.70528879,659.13,658.46,0.26412961]
[1751944872365,1.70528879,659.12,658.46,0.26412961]
[1751944872967,1.70528879,659.12,658.47,2.106]
[1751944875564,1.70528879,659.11,658.47,2.106]
[1751944879872,1.70528879,659.08,658.47,2.106]
[1751944880172,1.70528879,659.06,658.47,2.106]
[1751944880573,1.70528879,659.08,658.47,2.106]
[1751944884576,1.70528879,659.1,658.47,2.106]
[1751944890080,1.70528879,659.1,658.46,0.26412961]
[1751944890576,1.70528879,659.09,658.46,0.26412961]
[1751944893683,1.70528879,659.09,658.47,2.173]
[1751944894384,1.70528879,659.07,658.47,2.173]
[1751944894585,1.70528879,659.06,658.47,2.173]
[1751944894782,1.70528879,659.07,658.47,2.173]
[1751944901087,1.70528879,659.06,658.47,2.173]
[1751944904189,1.70528879,659.05,658.47,2.173]
[1751944904489,1.70528879,659.04,658.47,2.173]
[1751944906090,1.70528879,659.03,658.47,4.4412764]
[1751944906493,1.70528879,659.02,658.48,2.2682764]
[1751944906686,1.70528879,659.02,658.49,2.2682764]
[1751944907185,1.70528879,659.03,658.47,4.4412764]
[1751944909793,2.32517908,659.15,658.47,2.173]
[1751944910089,2.79796068,659.28,658.47,2.173]
[1751944910293,1.03565768,659.27,658.47,2.173]
[1751944910590,1.03565768,659.26,658.47,2.173]
[1751944910793,1.03565768,659.25,658.47,2.173]
[1751944911089,1.03565768,659.24,658.47,2.173]
[1751944911293,1.70544407,659.05,658.47,2.173]
[1751944916900,1.70544407,659.04,658.47,2.173]
[1751944920296,1.70544407,659.02,658.48,2.27533872]
[1751944920899,1.70544407,659.02,658.49,2.27533872]
[1751944921400,1.70544407,659.03,658.47,4.44833872]
[1751944922200,1.70544407,659.02,658.47,4.44833872]
[1751944923701,1.70544407,659.02,658.48,2.27533872]
[1751944924406,1.70544407,659.01,658.47,4.44833872]
[1751944925602,1.70544407,659.01,658.48,2.27533872]
[1751944927004,1.70544407,659.0,658.5,2.27533872]
[1751944929509,1.70544407,659.0,658.51,2.27533872]
[1751944931007,1.70544407,658.98,658.51,2.27533872]
[1751944931210,1.70544407,658.98,658.56,2.27533872]
[1751944933910,1.70544407,658.98,658.55,2.27533872]
[1751944934108,1.70544407,658.98,658.56,2.27533872]
[1751944934613,1.70619018,658.98,658.55,2.27533872]
[1751944935214,1.70619018,658.98,658.56,2.27533872]
[1751944935712,1.70619018,658.98,658.57,2.245]
[1751944937216,1.70619018,659.0,658.57,2.245]
[1751944937916,1.70619018,659.01,658.57,2.245]
[1751944939412,1.70619018,659.04,658.57,4.52033872]
[1751944940315,1.70598779,659.04,658.57,2.245]
[1751944940513,1.70598779,659.04,658.57,4.52033872]
[1751944941316,2.32664685,659.15,658.57,4.52033872]
[1751944941317,1.70598779,659.05,658.57,2.245]
[1751944942216,1.70598779,659.05,658.57,4.52033872]
[1751944943421,1.70598779,659.05,658.57,2.245]
[1751944944518,1.70598779,659.06,658.57,2.245]
[1751944944723,1.70598779,659.08,658.57,2.245]
[1751944946323,1.70542174,659.08,658.57,2.245]
[1751944948221,1.70542174,659.09,658.57,2.245]
[1751944950522,1.70542174,659.1,658.57,2.245]
[1751944950722,1.70542174,659.11,658.57,2.245]
[1751944953325,1.70542174,659.12,658.57,2.245]
[1751944953629,1.70542174,659.13,658.57,2.245]
[1751944958331,1.70542174,659.19,658.57,2.245]
[1751944958532,1.70542174,659.2,658.57,4.52033872]
[1751944958933,1.70542174,659.2,658.57,2.245]
[1751944959233,1.70542174,659.21,658.6,2.27533872]
[1751944959433,1.70542174,659.21,658.59,2.27533872]
[1751944959637,1.70542174,659.2,658.58,2.27533872]
[1751944960128,1.70542174,659.17,658.57,2.245]
[1751944960533,1.70542174,659.21,658.58,2.27533872]
[1751944961031,1.70542174,659.22,658.57,4.52033872]
[1751944961334,1.70542174,659.23,658.57,2.245]
[1751944962235,1.70542174,659.24,658.57,2.245]
[1751944962430,1.70542174,659.23,658.59,2.27533872]
[1751944962636,1.70542174,659.23,658.6,2.27533872]
[1751944963238,1.70542174,659.28,658.63,2.27533872]
[1751944963435,1.70542174,659.29,658.62,2.27533872]
[1751944964434,1.70542174,659.3,658.61,2.27533872]
[1751944964634,1.70542174,659.31,658.59,2.27533872]
[1751944964932,1.70542174,659.32,658.6,2.27533872]
[1751944965339,4.02916978,659.33,658.58,2.27533872]
[1751944965534,1.03559365,659.32,658.58,2.27533872]
[1751944965733,1.70542174,659.33,658.58,2.27533872]
[1751944966333,1.70542174,659.37,658.57,2.245]
[1751944966540,1.70542174,659.45,658.57,2.245]
[1751944966939,1.70542174,659.46,658.57,2.245]
[1751944967137,1.70542174,659.45,658.57,2.245]
[1751944967437,1.70542174,659.55,658.57,2.245]
[1751944967640,1.70542174,659.53,658.57,2.245]
[1751944968344,1.70542174,659.54,658.57,2.245]
[1751944968744,1.70542174,659.37,658.57,2.245]
[1751944969540,1.70542174,659.4,658.57,2.245]
[1751944969945,1.70542174,659.39,658.57,2.245]
[1751944970345,1.70542174,659.4,658.57,2.245]
[1751944970548,1.70542174,659.5,658.57,2.245]
[1751944970947,1.70542174,659.36,658.57,2.245]
[1751944971440,1.70542174,659.35,658.57,4.52033872]
[1751944972047,1.70542174,659.39,658.61,2.27533872]
[1751944972248,1.70542174,659.4,658.59,2.27533872]
[1751944972744,1.70542174,659.48,658.72,2.27533872]
[1751944972943,1.70542174,659.45,658.69,2.27533872]
[1751944973343,1.70542174,659.46,658.68,2.27533872]
[1751944973745,1.70542174,659.46,658.67,2.27533872]
[1751944974349,1.70542174,659.47,658.65,2.27533872]
[1751944975149,1.70542174,659.46,658.64,2.27533872]
[1751944975345,1.70542174,659.46,658.63,2.27533872]
[1751944975950,1.70542174,659.47,658.62,2.27533872]
[1751944976251,1.70542174,659.47,658.61,2.27533872]
[1751944977246,1.70542174,659.46,658.63,2.27533872]
[1751944978346,1.70542174,659.46,658.62,2.27533872]
[1751944979347,1.70542174,659.46,658.61,2.27533872]
[1751944979747,1.70542174,659.46,658.62,2.27533872]
[1751944981751,1.70542174,659.46,658.61,2.27533872]
[1751944982155,1.70542174,659.46,658.63,2.27533872]
[1751944982354,1.70542174,659.46,658.62,2.27533872]
[1751944983757,1.70542174,659.45,658.63,2.27533872]
[1751944984456,1.70542174,659.46,658.63,2.27533872]
[1751944984654,1.70542174,659.45,658.63,2.27533872]
[1751944985654,1.70542174,659.45,658.57,2.245]
[1751944985655,1.70542174,659.44,658.66,2.27533872]
[1751944987261,1.70542174,659.45,658.63,2.27533872]
[1751944988758,1.70542174,659.45,658.64,2.27533872]
[1751944991763,1.70542174,659.45,658.65,2.27533872]
[1751944991961,1.70542174,659.45,658.64,2.27533872]
[1751944992365,1.03062294,659.54,658.64,2.27533872]
[1751944992562,1.69707423,659.45,658.64,2.27533872]
[1751944994264,1.69707423,659.45,658.65,2.27533872]
[1751944997170,1.69707423,659.44,658.67,2.27533872]
[1751944999274,1.69707423,659.45,658.69,2.27533872]
[1751945001277,1.69707423,659.45,658.71,2.27533872]
[1751945001477,1.69707423,659.47,658.71,2.27533872]
[1751945002382,1.69707423,659.46,658.71,2.27533872]
[1751945002982,1.69707423,659.47,658.71,2.27533872]
[1751945003378,1.69707423,659.47,658.72,2.27533872]
[1751945004081,2.72769717,659.56,658.66,2.057]
[1751945004380,1.69707423,659.57,658.66,2.057]
[1751945004884,1.69707423,659.69,658.66,2.057]
[1751945005282,2.72769717,659.7,658.66,2.057]
[1751945005481,1.69707423,659.7,658.66,2.057]
[1751945008790,1.69707423,659.69,658.66,2.057]
[1751945011191,2.78523773,659.87,658.66,4.33233872]
[1751945011192,1.69707423,659.68,658.66,4.33233872]
[1751945011392,1.69707423,659.72,658.71,2.27533872]
[1751945012290,1.69707423,659.72,658.7,2.27533872]
[1751945014091,1.69707423,659.67,658.83,2.27533872]
[1751945014297,1.69707423,659.67,658.84,2.27533872]
[1751945014794,1.69707423,659.67,658.82,2.27533872]
[1751945016392,1.69707423,659.67,658.69,3.41300808]
[1751945016393,1.69707423,659.67,658.83,2.27533872]
[1751945017293,1.69707423,659.67,658.82,2.27533872]
[1751945017997,1.69707423,659.67,658.83,2.27533872]
[1751945018196,1.69707423,659.67,658.84,2.27533872]
[1751945018393,1.69707423,659.67,658.83,2.27533872]
[1751945018595,1.69707423,659.67,658.85,2.27533872]
[1751945019297,1.69707423,659.68,658.84,2.27533872]
[1751945020893,1.69707423,659.67,658.85,2.27533872]
[1751945021098,1.69707423,659.67,658.86,2.27533872]
[1751945022098,1.69707423,659.65,658.88,2.27533872]
[1751945022400,1.69707423,659.65,658.89,2.27533872]
[1751945022598,1.69707423,659.65,658.88,2.27533872]
[1751945022897,1.69707423,659.67,658.85,2.27533872]
[1751945026301,1.69707423,659.66,658.86,2.27533872]
[1751945027200,2.31705616,659.78,658.86,2.27533872]
[1751945027404,1.69811319,659.66,658.86,2.27533872]
[1751945028306,1.69811319,659.67,658.85,2.27533872]
[1751945029108,1.69811319,659.66,658.86,2.27533872]
[1751945029308,1.69811319,659.67,658.88,2.27533872]
[1751945029507,1.69811319,659.67,658.87,2.27533872]
[1751945032009,1.69811319,659.67,658.88,2.27533872]
[1751945032912,1.69811319,659.65,658.92,2.27533872]
[1751945033416,1.69811319,659.65,658.91,2.27533872]
[1751945034018,1.69811319,659.65,658.92,2.27533872]
[1751945034217,1.69811319,659.65,658.91,2.27533872]
[1751945035112,1.69811319,659.65,658.92,2.27533872]
[1751945038118,1.69811319,659.64,658.93,2.27533872]
[1751945038516,1.69811319,659.68,658.83,2.27533872]
[1751945038717,1.69811319,659.69,658.83,2.27533872]
[1751945038920,1.69811319,659.69,658.84,2.27533872]
[1751945041224,1.69811319,659.7,658.82,2.27533872]
[1751945042725,1.69811319,659.72,658.78,2.27533872]
[1751945044123,1.69811319,659.72,658.79,1.736]
[1751945045825,1.69811319,659.73,658.79,1.736]
[1751945048428,1.69811319,659.72,658.81,2.27533872]
[1751945049325,1.69811319,659.72,658.82,2.27533872]